fUST/lending_fUST_20251212
["ID","MTS","AMOUNT","RATE_DAILY","PERIOD"]
[398278250,1765489540020,-713.97283296,0.00036357,30]
[398278251,1765489540048,-740.38982778,0.00036357,30]
[398278253,1765489540076,-767.7842514,0.00036357,30]
[398278254,1765489540104,-796.19226871,0.00036357,30]
[398278256,1765489540131,-796.19226871,0.00036357,30]
[398278257,1765489540158,-151.0,0.00036357,30]
[398278258,1765489540186,-500.0,0.00036357,30]
[398278260,1765489540216,-151.0,0.00036357,30]
[398278261,1765489540246,-2000.0,0.00036357,30]
[398278262,1765489540275,-250.0,0.00036357,30]
[398278264,1765489540303,-151.0,0.00036357,30]
[398278265,1765489540334,-250.0,0.00036357,30]
[398278267,1765489540363,-2074.0,0.00036357,30]
[398278268,1765489540393,-500.0,0.00036357,30]
[398278270,1765489540423,-151.0,0.00036357,30]
[398278271,1765489540451,-250.0,0.00036357,30]
[398278272,1765489540481,-2150.738,0.00036357,30]
[398278274,1765489540510,-500.0,0.00036357,30]
[398278275,1765489540538,-2230.315306,0.00036357,30]
[398278276,1765489540567,-250.0,0.00036357,30]
[398278278,1765489540599,-500.0,0.00036357,30]
[398278279,1765489540629,-2312.83697232,0.00036357,30]
[398278281,1765489540658,-2398.4119403,0.00036357,30]
[398278282,1765489540687,-151.0,0.00036357,30]
[398278284,1765489540717,-151.0,0.00036357,30]
[398278285,1765489540744,-151.0,0.00036357,30]
[398278286,1765489540771,-151.0,0.00036357,30]
[398278288,1765489540799,-151.0,0.00036357,30]
[398278289,1765489540825,-151.0,0.00036357,30]
[398278290,1765489540853,-151.0,0.00036357,30]
[398278292,1765489540882,-151.0,0.00036357,30]
[398278293,1765489540911,-221.77870707,0.00036357,120]
[398278295,1765489540937,-151.0,0.00036357,30]
[398278296,1765489540965,-151.0,0.00036357,30]
[398278297,1765489540994,-151.0,0.00036357,30]
[398278299,1765489541021,-53069.43699983,0.00036357,20]
[398278300,1765489541048,-151.0,0.00036357,30]
[398278302,1765489541076,-151.0,0.00036357,30]
[398278303,1765489541104,-151.0,0.00036357,30]
[398278304,1765489541133,-151.0,0.00036357,30]
[398278306,1765489541162,-151.0,0.00036357,30]
[398278309,1765489541349,151.0,0.00036357,30]
[398278311,1765489541485,151.0,0.00036357,30]
[398278313,1765489541579,151.0,0.00036357,30]
[398278315,1765489541655,151.0,0.00036357,30]
[398278317,1765489541735,151.0,0.00036357,30]
[398278393,1765489548400,5685.0,0.00036357,20]
[398278419,1765489550265,474.0,0.00036357,20]
[398278961,1765489595841,-150.0,0.0002,10]
[398278962,1765489595890,-3722.46,0.000227,14]
[398278964,1765489595925,-3722.46,0.000253,14]
[398278965,1765489595954,-1363.22739542,0.00026408,16]
[398278966,1765489595982,-1514.69710602,0.00026672,18]
[398278968,1765489596010,-909.19686215,0.00026936,18]
[398278969,1765489596039,-3722.46,0.00027,14]
[398278971,1765489596070,-295.30641892,0.00028,10]
[398278972,1765489596101,-3722.46,0.000291,14]
[398278974,1765489596150,-3722.46,0.000329,30]
[398278975,1765489596180,-166.0,0.00033,14]
[398278976,1765489596212,-853.29649118,0.00033151,120]
[398278978,1765489596245,-2481.44540793,0.000332,117]
[398278979,1765489596274,-2481.44540791,0.000332,117]
[398278980,1765489596302,-2481.44540791,0.000332,117]
[398278982,1765489596331,-2481.44540791,0.000332,117]
[398278983,1765489596362,-2481.44540791,0.000332,117]
[398278985,1765489596391,-166.0,0.00034521,30]
[398278986,1765489596420,-1400.0,0.00034713,14]
[398278987,1765489596450,-2563533.0302948,0.00035,10]
[398278989,1765489596479,-22254.62561401,0.00035,30]
[398278990,1765489596509,-1000.0,0.00035,14]
[398278991,1765489596538,-295.30641892,0.00035,30]
[398278993,1765489596565,-163.0,0.00035,120]
[398278994,1765489596593,-1186.80790311,0.00035,20]
[398278996,1765489596619,-212.81382399,0.00035,90]
[398278997,1765489596646,-155.41,0.00035021,60]
[398278998,1765489596675,-1407.11,0.00035064,60]
[398279000,1765489596704,-2000.0,0.00035068,120]
[398279001,1765489596732,-2000.0,0.00035068,120]
[398279003,1765489596778,-2000.0,0.00035068,120]
[398279004,1765489596811,-2000.0,0.00035068,120]
[398279005,1765489596844,-200.0,0.00035098,120]
[398279007,1765489596877,-155.41,0.00035121,60]
[398279008,1765489596909,-901.90198751,0.00035151,120]
[398279010,1765489596941,-1313.596879,0.0003516,120]
[398279011,1765489596975,-1407.11,0.00035164,60]
[398279013,1765489597007,-155.41,0.00035221,60]
[398279014,1765489597032,-1407.11,0.00035264,60]
[398279015,1765489597056,-155.41,0.00035321,60]
[398279017,1765489597081,-2000.0,0.00035342,120]
[398279018,1765489597108,-1407.11,0.00035364,60]
[398279019,1765489597134,-155.41,0.00035421,60]
[398279021,1765489597159,-1407.11,0.00035464,60]
[398279022,1765489597186,-233.0,0.00035507,30]
[398279023,1765489597213,-155.41,0.00035521,60]
[398279025,1765489597241,-1400.0,0.00035535,14]
[398279026,1765489597281,-1407.11,0.00035564,60]
[398279028,1765489597309,-200.0,0.00035586,120]
[398279029,1765489597345,-388.04745,0.000356,120]
[398279030,1765489597373,-258.6983,0.000356,120]
[398279032,1765489597400,-517.3966,0.000356,120]
[398279033,1765489597428,-174.0,0.000356,120]
[398279034,1765489597455,-2000.0,0.00035616,120]
[398279035,1765489597482,-2000.0,0.00035616,120]
[398279037,1765489597509,-2000.0,0.00035616,120]
[398279044,1765489598055,-2000.0,0.00035616,120]
[398279046,1765489598093,-865.09,0.00035616,33]
[398279047,1765489598120,-2111.48,0.00035616,120]
[398279048,1765489598146,-500.0,0.00035616,120]
[398279050,1765489598171,-155.41,0.00035621,60]
[398279051,1765489598201,-1407.11,0.00035664,60]
[398279052,1765489598225,-155.61269029,0.00035721,60]
[398279054,1765489598256,-367.0,0.0003573,30]
[398279055,1765489598288,-1231.1716677,0.0003575,120]
[398279057,1765489598315,-1407.11,0.00035764,60]
[398279058,1765489598339,-5588.00087775,0.000358,90]
[398279059,1765489598368,-1407.11,0.00035864,60]
[398279061,1765489598393,-346.0,0.0003589,30]
[398279062,1765489598419,-1407.11,0.00035964,60]
[398279063,1765489598449,-277.0064197,0.00036,120]
[398279065,1765489598474,-400.0,0.00036,120]
[398279066,1765489598503,-1000.0,0.00036,120]
[398279067,1765489598533,-150.0,0.00036,120]
[398279069,1765489598560,-494.66579343,0.00036,120]
[398279070,1765489598587,-978.0,0.00036,120]
[398279071,1765489598614,-247.923106,0.00036,120]
[398279073,1765489598639,-295.30641892,0.00036,120]
[398279074,1765489598664,-346.0,0.00036,30]
[398279076,1765489598691,-1407.11,0.00036064,60]
[398279077,1765489598716,-2000.0,0.00036164,120]
[398279078,1765489598741,-2000.0,0.00036164,120]
[398279080,1765489598766,-1407.11,0.00036164,60]
[398279081,1765489598791,-300.0,0.00036173,120]
[398279082,1765489598816,-2085.29815114,0.0003618,90]
[398279084,1765489598842,-200.0,0.00036247,120]
[398279085,1765489598871,-1407.11,0.00036264,60]
[398279086,1765489598896,-174.0,0.000363,120]
[398279088,1765489598921,-150.0,0.000363,91]
[398279089,1765489598946,-200.0,0.000363,15]
[398279090,1765489598973,-490.33,0.000363,15]
[398279092,1765489599000,-3000.0,0.00036354,30]
[398279093,1765489599026,-3000.0,0.00036354,30]
[398279094,1765489599051,-3000.0,0.00036354,30]
[398279096,1765489599075,-3000.11631795,0.00036354,30]
[398279097,1765489599102,-3888.0,0.00036354,30]
[398279098,1765489599128,-4031.856,0.00036354,30]
[398279100,1765489599156,-4181.034672,0.00036354,30]
[398279101,1765489599188,-4335.73295487,0.00036354,30]
[398279102,1765489599218,-152.0,0.00036355,14]
[398279104,1765489599250,-152.0,0.00036355,14]
[398279105,1765489599277,-152.0,0.00036355,14]
[398279107,1765489599310,-152.0,0.00036355,14]
[398279108,1765489599336,-152.0,0.00036355,14]
[398279109,1765489599363,-152.0,0.00036355,14]
[398279111,1765489599390,-152.0,0.00036355,14]
[398279112,1765489599418,-152.0,0.00036355,14]
[398279113,1765489599443,-152.0,0.00036355,14]
[398279115,1765489599469,-152.0,0.00036355,14]
[398279116,1765489599499,-152.0,0.00036355,14]
[398279117,1765489599530,-152.0,0.00036355,14]
[398279119,1765489599556,-152.0,0.00036355,14]
[398279120,1765489599580,-152.0,0.00036355,14]
[398279121,1765489599604,-152.0,0.00036355,14]
[398279123,1765489599631,-152.0,0.00036355,14]
[398279124,1765489599657,-152.0,0.00036355,14]
[398279125,1765489599682,-152.0,0.00036355,14]
[398279127,1765489599706,-152.0,0.00036355,14]
[398279128,1765489599730,-152.0,0.00036355,14]
[398279129,1765489599757,-152.0,0.00036355,14]
[398279131,1765489599780,-152.0,0.00036355,14]
[398279132,1765489599805,-270.03762129,0.00036355,14]
[398279133,1765489599828,-357.0,0.00036355,30]
[398279135,1765489599859,-357.0,0.00036357,30]
[398279136,1765489599885,-1400.0,0.00036357,14]
[398279137,1765489599913,-1407.11,0.00036364,60]
[398279139,1765489599943,-477.7482137,0.0003637,16]
[398279140,1765489599967,-388.04745,0.000364,120]
[398279141,1765489599991,-200.0,0.000364,120]
[398279143,1765489600015,-865.09,0.00036438,34]
[398279144,1765489600041,-1407.11,0.00036464,60]
[398279145,1765489600065,-166.38340576,0.000365,120]
[398279147,1765489600089,-150.0,0.00036536,120]
[398279148,1765489600113,-150.0,0.00036536,120]
[398279149,1765489600138,-150.0,0.00036536,120]
[398279150,1765489600163,-150.0,0.00036536,120]
[398279152,1765489600192,-170.25,0.00036536,120]
[398279153,1765489600221,-1407.13527136,0.00036564,60]
[398279154,1765489600246,-20175.0,0.000366,120]
[398279156,1765489600272,-2000.0,0.00036712,120]
[398279157,1765489600298,-2000.0,0.00036712,120]
[398279158,1765489600323,-169.0,0.0003674,92]
[398279159,1765489600347,-241999.68638354,0.00036789,60]
[398279222,1765489605634,-208617.38197694,0.00036789,60]
[398279223,1765489605661,-152.666,0.000368,120]
[398279225,1765489605685,-205.0,0.0003681,45]
[398279226,1765489605711,-669.59,0.00036835,60]
[398279227,1765489605737,-200.0,0.00036843,120]
[398279229,1765489605762,-174.0,0.000369,120]
[398279230,1765489605791,-669.59,0.00036935,60]
[398279231,1765489605817,-237.37852805,0.00037,120]
[398279233,1765489605844,-150.0,0.00037,120]
[398279234,1765489605870,-400.0,0.00037,120]
[398279235,1765489605898,-500.0,0.00037,120]
[398279237,1765489605922,-150.0,0.00037,120]
[398279238,1765489605946,-1000.0,0.00037,120]
[398279239,1765489605971,-295.30641892,0.00037,30]
[398279241,1765489605996,-669.59,0.00037035,60]
[398279242,1765489606021,-669.59,0.00037135,60]
[398279243,1765489606050,-950.50748385,0.00037151,120]
[398279247,1765489606298,-1400.0,0.00037179,14]
[398279249,1765489606323,-3697.86709911,0.0003718,90]
[398279250,1765489606350,-388.04745,0.000372,120]
[398279251,1765489606376,-258.6983,0.000372,120]
[398279253,1765489606401,-517.3966,0.000372,120]
[398279254,1765489606429,-669.59,0.00037235,60]
[398279255,1765489606454,-2000.0,0.0003726,120]
[398279257,1765489606480,-2000.0,0.0003726,120]
[398279258,1765489606503,-865.09,0.0003726,35]
[398279259,1765489606528,-669.59,0.00037335,60]
[398279261,1765489606553,-346.0,0.00037397,30]
[398279262,1765489606585,-669.59,0.00037435,60]
[398279263,1765489606610,-594.7042286,0.0003748,30]
[398279265,1765489606634,-174.0,0.000375,120]
[398279266,1765489606659,-669.59,0.00037535,60]
[398279267,1765489606686,-669.59,0.00037635,60]
[398279269,1765489606712,-669.59,0.00037735,60]
[398279270,1765489606738,-2000.0,0.00037808,120]
[398279271,1765489606763,-2000.0,0.00037808,120]
[398279272,1765489606791,-669.59,0.00037835,60]
[398279274,1765489606817,-669.59,0.00037935,60]
[398279275,1765489606841,-50552.93967791,0.00038,10]
[398279276,1765489606865,-1005.32140725,0.00038,30]
[398279278,1765489606891,-400.0,0.00038,120]
[398279279,1765489606916,-1000.0,0.00038,120]
[398279280,1765489606940,-150.0,0.00038,120]
[398279282,1765489606965,-1400.0,0.00038001,14]
[398279283,1765489606991,-669.59,0.00038035,60]
[398279284,1765489607016,-865.09,0.00038082,36]
[398279286,1765489607041,-174.0,0.000381,120]
[398279287,1765489607066,-669.59,0.00038135,60]
[398279288,1765489607095,-200.0,0.00038172,120]
[398279290,1765489607118,-200.0,0.00038172,120]
[398279291,1765489607144,-200.0,0.00038172,120]
[398279292,1765489607168,-388.04745,0.000382,120]
[398279294,1765489607195,-243.53336,0.000382,120]
[398279295,1765489607220,-200.0,0.000382,120]
[398279296,1765489607244,-31618.9563,0.0003822,30]
[398279298,1765489607271,-669.59,0.00038235,60]
[398279299,1765489607297,-669.59,0.00038335,60]
[398279300,1765489607326,-2000.0,0.00038356,120]
[398279302,1765489607350,-2000.0,0.00038356,120]
[398279303,1765489607375,-2111.48,0.00038356,120]
[398279304,1765489607399,-815.95492258,0.00038356,120]
[398279306,1765489607423,-1000.0,0.00038356,120]
[398279307,1765489607448,-151.0,0.00038356,120]
[398279308,1765489607478,-151.0,0.00038356,120]
[398279310,1765489607503,-151.0,0.00038356,120]
[398279311,1765489607528,-253.673164,0.00038356,120]
[398279312,1765489607555,-669.59,0.00038435,120]
[398279314,1765489607581,-200.0,0.00038493,120]
[398279315,1765489607613,-643.0,0.000385,120]
[398279317,1765489607644,-669.59,0.00038535,120]
[398279318,1765489607669,-3006.11,0.00038578,30]
[398279319,1765489607697,-669.59,0.00038635,120]
[398279321,1765489607738,-311.19119695,0.0003867,120]
[398279322,1765489607769,-669.59,0.00038735,120]
[398279323,1765489607794,-388.04745,0.000388,120]
[398279325,1765489607818,-258.6983,0.000388,120]
[398279326,1765489607844,-517.3966,0.000388,120]
[398279327,1765489607871,-174.0,0.000388,120]
[398279329,1765489607900,-1400.0,0.00038823,14]
[398279330,1765489607927,-669.59,0.00038835,120]
[398279331,1765489607952,-865.09,0.00038904,37]
[398279333,1765489607979,-669.59,0.00038935,120]
[398279334,1765489608004,-296.27095394,0.00039,120]
[398279335,1765489608029,-150.0,0.00039,120]
[398279337,1765489608054,-800.0,0.00039,120]
[398279338,1765489608081,-500.0,0.00039,120]
[398279339,1765489608107,-150.0,0.00039,120]
[398279341,1765489608135,-1000.57376933,0.00039,120]
[398279342,1765489608162,-17448.0,0.00039,14]
[398279343,1765489608191,-3722.46,0.00039,30]
[398279345,1765489608217,-205.0,0.0003902,51]
[398279346,1765489608247,-669.59,0.00039035,120]
[398279347,1765489608276,-669.59,0.00039135,120]
[398279349,1765489608303,-999.11298018,0.00039151,120]
[398279350,1765489608332,-669.59,0.00039235,120]
[398279351,1765489608358,-348.0,0.00039267,90]
[398279353,1765489608385,-5790.0,0.00039319,20]
[398279354,1765489608411,-669.59,0.00039335,120]
[398279355,1765489608435,-2393.2929056,0.0003939,120]
[398279357,1765489608460,-174.0,0.000394,120]
[398279358,1765489608486,-669.59,0.00039435,120]
[398279359,1765489608515,-669.59,0.00039535,120]
[398279361,1765489608542,-669.59,0.00039635,120]
[398279362,1765489608567,-865.09,0.00039726,38]
[398279363,1765489608594,-669.59,0.00039735,120]
[398279365,1765489608618,-2049.99999999,0.000398,120]
[398279366,1765489608647,-669.59,0.00039835,120]
[398279367,1765489608673,-669.59,0.00039935,120]
[398279368,1765489608697,-276.89431633,0.0004,10]
[398279370,1765489608722,-826.02341617,0.0004,120]
[398279371,1765489608747,-1134.92023338,0.0004,30]
[398279372,1765489608772,-1515.95716545,0.0004,120]
[398279376,1765489608958,-204.81639363,0.0004,100]
[398279377,1765489608985,-1098.947996,0.0004,120]
[398279378,1765489609011,-641.42065151,0.0004,120]
[398279380,1765489609037,-800.0,0.0004,120]
[398279381,1765489609061,-1000.0,0.0004,120]
[398279382,1765489609086,-200.0,0.0004,120]
[398279384,1765489609109,-150.0,0.0004,120]
[398279385,1765489609134,-630.352,0.0004,120]
[398279386,1765489609159,-388.04745,0.0004,120]
[398279388,1765489609189,-1197358.39968966,0.0004,120]
[398279389,1765489609216,-352.93454,0.0004,120]
[398279390,1765489609240,-1000.0,0.0004,120]
[398279392,1765489609267,-1018.58,0.0004,120]
[398279393,1765489609292,-174.0,0.0004,120]
[398279394,1765489609316,-3235.49999938,0.0004,90]
[398279396,1765489609341,-213.652636,0.0004,120]
[398279397,1765489609367,-505.2303004,0.0004,120]
[398279398,1765489609393,-295.30641892,0.0004,120]
[398279400,1765489609418,-46435.21494931,0.0004,30]
[398279401,1765489609445,-295.30641892,0.0004,10]
[398279402,1765489609470,-295.30641892,0.0004,30]
[398279404,1765489609497,-155.0,0.00040027,120]
[398279405,1765489609527,-669.59,0.00040035,120]
[398279406,1765489609554,-669.59,0.00040135,120]
[398279408,1765489609579,-1313.596879,0.00040183,120]
[398279409,1765489609605,-669.59,0.00040235,120]
[398279410,1765489609631,-669.59,0.00040335,120]
[398279412,1765489609655,-388.04749,0.000404,120]
[398279413,1765489609679,-258.6983,0.000404,120]
[398279414,1765489609703,-517.3966,0.000404,120]
[398279416,1765489609728,-669.59,0.00040435,120]
[398279417,1765489609752,-1400.0,0.00040467,14]
[398279418,1765489609779,-669.59,0.00040535,120]
[398279420,1765489609802,-865.09,0.00040547,39]
[398279421,1765489609826,-174.0,0.000406,120]
[398279422,1765489609852,-669.59,0.00040635,120]
[398279424,1765489609879,-669.59,0.00040735,120]
[398279425,1765489609903,-607.0,0.00040822,120]
[398279426,1765489609928,-669.59,0.00040835,120]
[398279427,1765489609954,-669.59,0.00040935,120]
[398279429,1765489609979,-12841.0,0.00040968,120]
[398279430,1765489610005,-2762.70394275,0.00041,120]
[398279431,1765489610029,-150.0,0.00041,120]
[398279433,1765489610053,-800.0,0.00041,120]
[398279434,1765489610077,-635.87381607,0.00041,120]
[398279435,1765489610100,-150.0,0.00041,120]
[398279437,1765489610124,-1000.0,0.00041,120]
[398279438,1765489610151,-1982.77,0.00041,30]
[398279439,1765489610178,-500.0,0.00041,120]
[398279441,1765489610205,-669.59,0.00041035,120]
[398279442,1765489610235,-2111.48,0.00041095,120]
[398279443,1765489610264,-5000.0,0.00041096,30]
[398279445,1765489610289,-813.25,0.00041096,120]
[398279446,1765489610314,-3440.14,0.00041096,120]
[398279447,1765489610339,-2284.76068454,0.00041111,30]
[398279449,1765489610366,-669.59,0.00041135,120]
[398279450,1765489610392,-1047.71847651,0.00041151,120]
[398279451,1765489610418,-295.30641892,0.000412,120]
[398279453,1765489610443,-177.18349326,0.000412,120]
[398279454,1765489610467,-175.55117672,0.000412,120]
[398279455,1765489610492,-987.63828981,0.000412,120]
[398279457,1765489610516,-1004.68978143,0.000412,120]
[398279458,1765489610541,-169.71015377,0.000412,120]
[398279459,1765489610566,-181.9741005,0.000412,120]
[398279460,1765489610591,-199.98526242,0.000412,120]
[398279462,1765489610614,-305.57693377,0.000412,120]
[398279463,1765489610639,-582.65286729,0.000412,120]
[398279464,1765489610665,-575.41553584,0.000412,120]
[398279466,1765489610689,-176.34564976,0.000412,120]
[398279467,1765489610712,-162.50845711,0.000412,120]
[398279468,1765489610736,-548.69633866,0.000412,120]
[398279470,1765489610759,-444.62773285,0.000412,120]
[398279471,1765489610783,-697.86858751,0.000412,120]
[398279472,1765489610808,-295.30641892,0.000412,10]
[398279474,1765489610832,-205.0,0.0004122,57]
[398279475,1765489610859,-669.59,0.00041235,120]
[398279476,1765489610884,-174.0,0.000413,120]
[398279478,1765489610909,-669.59,0.00041335,120]
[398279479,1765489610933,-865.09,0.00041369,40]
[398279480,1765489610957,-1000.0,0.000414,120]
[398279482,1765489610981,-500.0,0.000414,120]
[398279483,1765489611007,-669.59,0.00041435,120]
[398279484,1765489611032,-669.59,0.00041535,120]
[398279485,1765489611055,-621.0,0.0004155,120]
[398279486,1765489611079,-669.59,0.00041635,120]
[398279487,1765489611103,-669.59,0.00041735,120]
[398279488,1765489611126,-388.04745,0.000418,120]
[398279489,1765489611152,-669.59,0.00041835,120]
[398279490,1765489611175,-346.0,0.00041885,90]
[398279491,1765489611203,-174.0,0.000419,120]
[398279492,1765489611228,-669.59,0.00041935,120]
[398279493,1765489611253,-12841.0,0.00041968,120]
[398279495,1765489611279,-800.0,0.00042,120]
[398279496,1765489611304,-1000.0,0.00042,120]
[398279497,1765489611328,-150.0,0.00042,120]
[398279501,1765489611505,-259.5103549,0.00042,120]
[398279502,1765489611531,-4414.49,0.00042,14]
[398279503,1765489611557,-669.59,0.00042035,120]
[398279505,1765489611582,-1400.0,0.00042111,60]
[398279506,1765489611608,-669.59,0.00042135,120]
[398279507,1765489611631,-865.09,0.00042191,41]
[398279509,1765489611658,-669.59,0.00042235,120]
[398279510,1765489611684,-669.59,0.00042335,120]
[398279511,1765489611708,-1803.79276238,0.000424,120]
[398279512,1765489611732,-177.18349326,0.000424,120]
[398279514,1765489611756,-175.55117672,0.000424,120]
[398279515,1765489611780,-987.63828981,0.000424,120]
[398279516,1765489611805,-1004.68978143,0.000424,120]
[398279518,1765489611832,-169.71015377,0.000424,120]
[398279519,1765489611856,-181.9741005,0.000424,120]
[398279520,1765489611882,-199.98526242,0.000424,120]
[398279522,1765489611907,-305.57693377,0.000424,120]
[398279523,1765489611932,-582.65286729,0.000424,120]
[398279524,1765489611956,-575.41553584,0.000424,120]
[398279526,1765489611980,-176.34564976,0.000424,120]
[398279527,1765489612004,-162.50845711,0.000424,120]
[398279528,1765489612028,-548.69633866,0.000424,120]
[398279530,1765489612053,-444.62773285,0.000424,120]
[398279531,1765489612078,-697.86858751,0.000424,120]
[398279532,1765489612104,-669.59,0.00042435,120]
[398279534,1765489612129,-174.0,0.000425,120]
[398279535,1765489612157,-669.59,0.00042535,120]
[398279536,1765489612184,-669.59,0.00042635,120]
[398279538,1765489612213,-669.59,0.00042735,120]
[398279539,1765489612242,-669.59,0.00042835,120]
[398279540,1765489612271,-669.59,0.00042935,120]
[398279542,1765489612297,-12841.0,0.00042968,120]
[398279543,1765489612322,-748.03722189,0.00042999,120]
[398279544,1765489612348,-288.14823501,0.00043,120]
[398279546,1765489612374,-2872.66480287,0.00043,120]
[398279547,1765489612400,-506.78,0.00043,120]
[398279548,1765489612427,-800.0,0.00043,120]
[398279550,1765489612456,-500.0,0.00043,120]
[398279551,1765489612483,-150.0,0.00043,120]
[398279552,1765489612509,-190.82,0.00043,120]
[398279554,1765489612535,-926880.7901827,0.00043,90]
[398279555,1765489612561,-865.09,0.00043013,42]
[398279556,1765489612587,-669.59,0.00043035,120]
[398279558,1765489612612,-174.0,0.000431,120]
[398279559,1765489612640,-669.59,0.00043135,120]
[398279560,1765489612668,-1096.32397284,0.00043151,120]
[398279562,1765489612693,-1400.0,0.00043207,60]
[398279563,1765489612720,-294073.39175212,0.0004322,30]
[398279615,1765489617469,-717652.30754788,0.0004322,30]
[398279616,1765489617497,-710.5,0.0004322,60]
[398279617,1765489617527,-669.59,0.00043235,120]
[398279618,1765489617555,-669.59,0.00043335,120]
[398279619,1765489617582,-205.0,0.0004343,63]
[398279620,1765489617611,-670.03364943,0.00043435,120]
[398279621,1765489617636,-166.0,0.00043496,90]
[398279622,1765489617662,-19705.53739062,0.000435,120]
[398279623,1765489617688,-900.0,0.0004355,120]
[398279624,1765489617713,-388.04745,0.000436,120]
[398279625,1765489617738,-177.18349326,0.000437,120]
[398279626,1765489617763,-175.55117672,0.000437,120]
[398279627,1765489617793,-987.63828981,0.000437,120]
[398279628,1765489617819,-1004.68978143,0.000437,120]
[398279629,1765489617843,-169.71015377,0.000437,120]
[398279630,1765489617868,-199.98526242,0.000437,120]
[398279631,1765489617900,-305.57693377,0.000437,120]
[398279632,1765489617925,-582.65286729,0.000437,120]
[398279633,1765489617950,-575.41553584,0.000437,120]
[398279634,1765489617975,-176.34564976,0.000437,120]
[398279635,1765489617998,-162.50845711,0.000437,120]
[398279636,1765489618023,-548.69633866,0.000437,120]
[398279637,1765489618047,-444.62773285,0.000437,120]
[398279638,1765489618072,-697.86858751,0.000437,120]
[398279639,1765489618097,-1000.0,0.000438,90]
[398279640,1765489618122,-1000.0,0.000438,90]
[398279641,1765489618147,-1000.0,0.000438,90]
[398279642,1765489618183,-1000.0,0.000438,90]
[398279643,1765489618213,-174.0,0.000438,120]
[398279644,1765489618240,-865.09,0.00043835,43]
[398279645,1765489618265,-2111.48,0.00043835,120]
[398279646,1765489618290,-12841.0,0.00043968,120]
[398279647,1765489618315,-800.0,0.00044,120]
[398279648,1765489618351,-1000.0,0.00044,120]
[398279649,1765489618379,-150.0,0.00044,120]
[398279650,1765489618407,-1400.0,0.00044303,60]
[398279651,1765489618434,-5790.0,0.00044319,20]
[398279652,1765489618462,-174.0,0.000444,120]
[398279653,1765489618488,-346.0,0.00044503,90]
[398279654,1765489618513,-865.09,0.00044657,44]
[398279655,1765489618539,-425.81120492,0.000447,60]
[398279656,1765489618563,-346.0,0.00044877,90]
[398279657,1765489618589,-2523.0,0.000449,120]
[398279658,1765489618614,-157.6836991,0.000449,120]
[398279659,1765489618639,-400.0,0.000449,120]
[398279660,1765489618664,-161.0,0.00044959,120]
[398279661,1765489618690,-12841.0,0.00044968,120]
[398279662,1765489618714,-1010.20039009,0.00045,120]
[398279663,1765489618742,-881.11852032,0.00045,20]
[398279664,1765489618767,-505.21013054,0.00045,120]
[398279665,1765489618791,-1018.32726343,0.00045,120]
[398279666,1765489618816,-573.79752928,0.00045,120]
[398279667,1765489618841,-1259.16263814,0.00045,120]
[398279668,1765489618866,-1312.87207802,0.00045,120]